[Event "XI Paracin Festival 2018"]
[Site "Paracin"]
[Date "2018.07.13"]
[Round "9"]
[White "Milanovic, Danilo"]
[Black "Martic, Ivan"]
[Result "0-1"]
[ECO "A48"]
[WhiteElo "2471"]
[BlackElo "2375"]
[Annotator "ChessBase"]
[PlyCount "60"]
[EventDate "2018.07.06"]
[EventType "swiss"]
[EventCountry "SRB"]
[SourceTitle "playchess.com"]
[Source "ChessBase"]
[SourceQuality "1"]
[TimeControl "5400+30"]

1. d4 {[%emt 0:09:17]} Nf6 {[%emt 0:00:00]} 2. Nf3 {[%emt 0:01:33]} g6 {[%emt 0:01:10]} 3. Bf4 {[%emt 0:01:30]} Bg7 {[%emt 0:00:14]} 4. e3 {[%emt 0:00:13]} d6 {[%emt 0:01:28]} 5. h3 {[%emt 0:00:19]} O-O {[%emt 0:00:10]} 6. Be2 {[%emt 0:00:15]} Nbd7 {[%emt 0:01:17]} 7. O-O {[%emt 0:05:06]} Qe8 {[%emt 0:00:14]} 8. Bh2 {[%emt 0:02:13]} e5 {[%emt 0:01:11]} 9. c4 {[%emt 0:00:41]} Ne4 {[%emt 0:02:39]} 10. Re1 {[%emt 0:29:41]} Qe7 {[%emt 0:03:11]} 11. Bf1 {[%emt 0:01:51]} Kh8 {[%emt 0:08:59]} 12. Nbd2 {[%emt 0:11:02]} Nxd2 {[%emt 0:03:22]} 13. Nxd2 {[%emt 0:00:17]} f5 {[%emt 0:02:18]} 14. Rc1 {[%emt 0:00:33]} b6 {[%emt 0:07:09]} 15. Nb1 {[%emt 0:06:15]} Bb7 {[%emt 0:20:04]} 16. Nc3 {[%emt 0:00:33]} Rae8 {[%emt 0:05:05]} 17. Qd2 {[%emt 0:06:36]} a5 {[%emt 0:06:11]} 18. a3 {[%emt 0:08:25]} g5 {[%emt 0:03:31]} 19. b4 {[%emt 0:01:31]} axb4 {[%emt 0:00:18]} 20. axb4 {[%emt 0:00:01]} f4 {[%emt 0:01:23]} 21. exf4 {[%emt 0:04:40]} gxf4 {[%emt 0:00:16]} 22. c5 {[%emt 0:01:43]} bxc5 {[%emt 0:05:25]} 23. bxc5 {[%emt 0:00:06]} dxc5 {[%emt 0:01:29]} 24. dxe5 {[%emt 0:00:10]} Bxe5 {[%emt 0:07:10]} 25. Rcd1 {[%emt 0:01:44]} Bc6 {[%emt 0:06:42]} 26. Nd5 {[%emt 0:04:02]} Qd6 {[%emt 0:03:23]} 27. Qa2 {[%emt 0:02:28]} f3 {[%emt 0:05:03]} 28. Bxe5+ {[%emt 0:00:40]} Rxe5 {[%emt 0:01:04]} 29. Ne3 {[%emt 0:00:12]} Qe6 {[%emt 0:02:30]} 30. g3 {[%emt 0:00:47]} Qxa2 0-1

[Event "XI Paracin Festival 2018"]
[Site "Paracin"]
[Date "2018.07.13"]
[Round "9"]
[White "Kosic, Dragan"]
[Black "Uuriintuya, Uurtsaikh"]
[Result "1-0"]
[ECO "E91"]
[WhiteElo "2463"]
[BlackElo "2158"]
[Annotator "ChessBase"]
[PlyCount "119"]
[EventDate "2018.07.06"]
[EventType "swiss"]
[EventCountry "SRB"]
[SourceTitle "playchess.com"]
[Source "ChessBase"]
[SourceQuality "1"]
[TimeControl "5400+30"]

1. d4 {[%emt 0:00:00]} Nf6 {[%emt 0:00:00]} 2. Nf3 {[%emt 0:00:00]} g6 {[%emt 0:00:00]} 3. c4 {[%emt 0:00:06]} Bg7 {[%emt 0:00:08]} 4. Nc3 {[%emt 0:00:08]} O-O {[%emt 0:00:21]} 5. e4 {[%emt 0:00:07]} d6 {[%emt 0:00:05]} 6. Be2 {[%emt 0:00:07]} Na6 {[%emt 0:00:12]} 7. O-O {[%emt 0:00:38]} e5 {[%emt 0:00:08]} 8. Be3 {[%emt 0:00:10]} Ng4 {[%emt 0:00:14]} 9. Bg5 {[%emt 0:02:30]} Qe8 {[%emt 0:00:14]} 10. h3 {[%emt 0:01:04]} exd4 {[%emt 0:00:42]} 11. Nxd4 {[%emt 0:00:34]} Nf6 {[%emt 0:02:52]} 12. Bd3 {[%emt 0:00:54]} Nc5 {[%emt 0:13:37]} 13. Re1 {[%emt 0:00:55]} Ne6 {[%emt 0:07:47]} 14. Be3 {[%emt 0:01:35]} Bd7 {[%emt 0:17:56]} 15. Nf3 {[%emt 0:03:23]} a6 {[%emt 0:04:01]} 16. a4 {[%emt 0:00:31]} c5 {[%emt 0:02:45]} 17. a5 {[%emt 0:04:54]} Bc6 {[%emt 0:01:33]} 18. Bc2 {[%emt 0:01:03]} Qd8 {[%emt 0:00:46]} 19. Qd2 {[%emt 0:05:38]} b5 {[%emt 0:02:16]} 20. axb6 {[%emt 0:01:09]} Qxb6 {[%emt 0:00:14]} 21. Nd5 {[%emt 0:05:21]} Qb7 {[%emt 0:02:02]} 22. Ra2 {[%emt 0:06:39]} Rfe8 {[%emt 0:00:27]} 23. Rb1 {[%emt 0:02:15]} Nf8 {[%emt 0:13:06]} 24. Bh6 {[%emt 0:15:45]} N8d7 {[%emt 0:05:20]} 25. Bxg7 {[%emt 0:02:22]} Kxg7 {[%emt 0:00:07]} 26. Qc3 {[%emt 0:00:17]} Bxd5 {[%emt 0:03:16]} 27. cxd5 {[%emt 0:03:48]} Qb4 {[%emt 0:02:26]} 28. Nd2 {[%emt 0:01:27]} a5 {[%emt 0:05:50]} 29. Rba1 {[%emt 0:03:25]} Nb6 {[%emt 0:01:23]} 30. f3 {[%emt 0:04:19]} Re7 {[%emt 0:05:45]} 31. Ba4 {[%emt 0:01:56]} Rb8 {[%emt 0:05:08]} 32. Bc6 {[%emt 0:00:28]} a4 {[%emt 0:00:35]} 33. Qxb4 {[%emt 0:02:54]} cxb4 {[%emt 0:00:02]} 34. Bxa4 {[%emt 0:00:10]} Nxa4 {[%emt 0:00:18]} 35. Rxa4 {[%emt 0:00:05]} Rc7 {[%emt 0:00:04]} 36. b3 {[%emt 0:00:35]} Rc3 {[%emt 0:00:03]} 37. Ra6 {[%emt 0:00:27]} Rd3 {[%emt 0:00:44]} 38. R1a2 {[%emt 0:00:30]} Ne8 {[%emt 0:00:20]} 39. Kf2 {[%emt 0:01:53]} h6 {[%emt 0:02:56]} 40. h4 {[%emt 0:03:40]} f5 {[%emt 0:00:16]} 41. Ra7+ {[%emt 0:04:11]} Kf6 {[%emt 0:00:01]} 42. Ke2 {[%emt 0:02:17]} Rc3 {[%emt 0:00:05]} 43. Ra8 {[%emt 0:00:36]} Rcc8 {[%emt 0:00:54]} 44. Rxb8 {[%emt 0:00:16]} Rxb8 {[%emt 0:00:01]} 45. Nc4 {[%emt 0:00:11]} fxe4 {[%emt 0:01:17]} 46. fxe4 {[%emt 0:00:09]} g5 {[%emt 0:00:50]} 47. hxg5+ {[%emt 0:00:12]} Kxg5 {[%emt 0:00:20]} 48. Kd3 {[%emt 0:01:13]} h5 {[%emt 0:00:19]} 49. Ra6 {[%emt 0:00:39]} Rd8 {[%emt 0:01:55]} 50. Rb6 {[%emt 0:01:17]} Kf4 {[%emt 0:00:46]} 51. Rxb4 {[%emt 0:00:31]} Nf6 {[%emt 0:00:30]} 52. Rb7 {[%emt 0:01:02]} Ng4 {[%emt 0:01:40]} 53. Rh7 {[%emt 0:01:17]} Rb8 {[%emt 0:00:36]} 54. Rxh5 {[%emt 0:01:34]} Rxb3+ {[%emt 0:00:38]} 55. Kd4 {[%emt 0:01:16]} Rb4 {[%emt 0:00:48]} 56. Rf5+ {[%emt 0:01:28]} Kg3 {[%emt 0:00:07]} 57. Kc3 {[%emt 0:00:37]} Ra4 {[%emt 0:00:51]} 58. Nxd6 {[%emt 0:00:49]} Kxg2 {[%emt 0:00:20]} 59. Nc4 {[%emt 0:02:07]} Nf2 {[%emt 0:00:30]} 60. Kd4 {[%emt 0:02:06]} 1-0

[Event "XI Paracin Festival 2018"]
[Site "Paracin"]
[Date "2018.07.13"]
[Round "9"]
[White "Arsovic, Zoran"]
[Black "Ninov, Dayan"]
[Result "1-0"]
[ECO "A06"]
[WhiteElo "2436"]
[BlackElo "2229"]
[Annotator "NA"]
[PlyCount "97"]
[EventDate "2018.07.06"]
[EventType "swiss"]
[EventCountry "SRB"]
[SourceTitle "playchess.com"]
[Source "ChessBase"]
[SourceQuality "1"]
[TimeControl "5400+30"]

1. Nf3 {[%emt 0:00:00]} d5 {[%emt 0:05:17]} 2. g3 {[%emt 0:00:23]} Nf6 {[%emt 0:00:28]} 3. Bg2 {[%emt 0:00:16]} c6 {[%emt 0:00:09]} 4. O-O {[%emt 0:00:39]} Bf5 {[%emt 0:01:33]} 5. c4 {[%emt 0:00:55]} e6 {[%emt 0:00:32]} 6. cxd5 {[%emt 0:01:14]} exd5 {[%emt 0:00:43]} 7. d3 {[%emt 0:00:40]} Be7 {[%emt 0:01:33]} 8. Qb3 {[%emt 0:00:58]} Qb6 {[%emt 0:00:11]} 9. Qc2 {[%emt 0:01:39]} h6 {[%emt 0:00:46]} 10. Nc3 {[%emt 0:08:15]} O-O {[%emt 0:01:12]} 11. e4 {[%emt 0:00:10]} Bh7 {[%emt 0:01:14]} 12. Be3 {[%emt 0:07:22]} Qa6 {[%emt 0:02:52]} 13. Rfd1 {[%emt 0:04:17]} Nbd7 {[%emt 0:11:55]} 14. a3 {[%emt 0:14:52]} Bc5 {[%emt 0:09:07]} 15. Bf4 {[%emt 0:21:38]} Rfe8 {[%emt 0:13:15]} 16. b4 {[%emt 0:01:30]} Bf8 {[%emt 0:03:21]} 17. exd5 {[%emt 0:05:05]} cxd5 {[%emt 0:03:55]} 18. Qb3 {[%emt 0:00:52]} Bd6 {[%emt 0:17:10]} 19. Be3 {[%emt 0:07:13]} Rad8 {[%emt 0:11:59]} 20. Bd4 {[%emt 0:04:17]} Ne5 {[%emt 0:03:48]} 21. b5 {[%emt 0:04:18]} Qa5 {[%emt 0:00:29]} 22. Nxe5 {[%emt 0:00:47]} Bxe5 {[%emt 0:00:18]} 23. Bxe5 {[%emt 0:00:06]} Rxe5 {[%emt 0:00:08]} 24. d4 {[%emt 0:00:12]} Re7 {[%emt 0:03:53]} 25. Nxd5 {[%emt 0:04:27]} Nxd5 {[%emt 0:00:11]} 26. Bxd5 {[%emt 0:00:08]} Red7 {[%emt 0:00:10]} 27. Bf3 {[%emt 0:05:30]} Rxd4 {[%emt 0:01:36]} 28. Rxd4 {[%emt 0:00:27]} Rxd4 {[%emt 0:00:08]} 29. Bxb7 {[%emt 0:00:43]} Bg6 {[%emt 0:02:15]} 30. Bc6 {[%emt 0:01:03]} Rd2 {[%emt 0:02:53]} 31. Qb4 {[%emt 0:01:09]} Qd8 {[%emt 0:00:02]} 32. Re1 {[%emt 0:00:34]} Rd1 {[%emt 0:00:56]} 33. Kg2 {[%emt 0:00:35]} Rxe1 {[%emt 0:01:31]} 34. Qxe1 {[%emt 0:00:05]} Qd4 {[%emt 0:00:25]} 35. Qe7 {[%emt 0:01:44]} Kh7 {[%emt 0:00:49]} 36. h4 {[%emt 0:00:22]} h5 {[%emt 0:00:43]} 37. Bf3 {[%emt 0:00:33]} Qb6 {[%emt 0:00:32]} 38. Qe5 {[%emt 0:00:49]} f6 {[%emt 0:00:29]} 39. Qd5 {[%emt 0:00:06]} Kh6 {[%emt 0:00:30]} 40. Qd2+ {[%emt 0:00:38]} Kh7 {[%emt 0:00:02]} 41. a4 {[%emt 0:01:06]} Qc5 {[%emt 0:00:41]} 42. Qe3 {[%emt 0:00:15]} Qc7 {[%emt 0:00:17]} 43. Qe6 {[%emt 0:01:02]} Qc1 {[%emt 0:00:53]} 44. a5 {[%emt 0:00:46]} Qb1 {[%emt 0:00:21]} 45. b6 {[%emt 0:00:27]} Bd3 {[%emt 0:00:40]} 46. Qe3 {[%emt 0:00:49]} axb6 {[%emt 0:00:37]} 47. axb6 {[%emt 0:00:12]} Qf1+ {[%emt 0:00:28]} 48. Kh2 {[%emt 0:00:08]} Bf5 {[%emt 0:00:27]} 49. Bg2 {[%emt 0:00:45]} 1-0

[Event "XI Paracin Festival 2018"]
[Site "Paracin"]
[Date "2018.07.13"]
[Round "9"]
[White "Abramovic, Bosko"]
[Black "Ivic, Velimir"]
[Result "0-1"]
[ECO "A00"]
[WhiteElo "2409"]
[BlackElo "2432"]
[Annotator "NA RC"]
[PlyCount "76"]
[EventDate "2018.07.06"]
[EventType "swiss"]
[EventCountry "SRB"]
[SourceTitle "playchess.com"]
[Source "ChessBase"]
[SourceQuality "1"]
[TimeControl "5400+30"]

1. g3 {[%emt 0:00:00]} Nf6 {[%emt 0:01:08]} 2. Bg2 {[%emt 0:00:00]} g6 {[%emt 0:00:11]} 3. d4 {[%emt 0:01:19]} Bg7 {[%emt 0:00:14]} 4. e4 {[%emt 0:00:13]} d6 {[%emt 0:00:05]} 5. Nc3 {[%emt 0:00:04]} O-O {[%emt 0:00:06]} 6. Nge2 {[%emt 0:00:08]} e5 {[%emt 0:00:55]} 7. h3 {[%emt 0:00:12]} Nc6 {[%emt 0:01:29]} 8. Be3 {[%emt 0:00:08]} exd4 {[%emt 0:01:00]} 9. Nxd4 {[%emt 0:00:12]} Bd7 {[%emt 0:00:10]} 10. O-O {[%emt 0:00:09]} Re8 {[%emt 0:00:10]} 11. Re1 {[%emt 0:02:23]} Nxd4 {[%emt 0:01:08]} 12. Bxd4 {[%emt 0:00:08]} c5 {[%emt 0:00:09]} 13. Be3 {[%emt 0:01:31]} Bc6 {[%emt 0:00:06]} 14. Bf4 {[%emt 0:04:42]} Re6 {[%emt 0:01:37]} 15. Qd2 {[%emt 0:05:39]} Qb6 {[%emt 0:18:10]} 16. Rab1 {[%emt 0:15:01]} Rae8 {[%emt 0:05:12]} 17. Bxd6 {[%emt 0:06:56]} Nxe4 {[%emt 0:24:41]} 18. Nxe4 {[%emt 0:01:23]} Bxe4 {[%emt 0:00:09]} 19. Rxe4 {[%emt 0:00:15]} Rxe4 {[%emt 0:00:09]} 20. Bxe4 {[%emt 0:00:11]} Rxe4 {[%emt 0:00:08]} 21. Bf4 {[%emt 0:08:27]} h5 {[%emt 0:05:21]} 22. c3 {[%emt 0:06:57]} Qe6 {[%emt 0:03:18]} 23. Qd3 {[%emt 0:00:46]} Kh7 {[%emt 0:14:25]} 24. Rd1 {[%emt 0:15:21]} h4 {[%emt 0:04:23]} 25. Qf3 {[%emt 0:04:46]} hxg3 {[%emt 0:03:07]} 26. Bxg3 {[%emt 0:00:11]} f5 {[%emt 0:06:26]} 27. Bf4 {[%emt 0:08:34]} Qxa2 {[%emt 0:02:19]} 28. Qg3 {[%emt 0:00:57]} Qf7 {[%emt 0:04:21]} 29. Bg5 {[%emt 0:07:54]} Re8 {[%emt 0:03:02]} 30. Qd6 {[%emt 0:01:21]} b6 {[%emt 0:00:47]} 31. Qc6 {[%emt 0:03:19]} Re6 {[%emt 0:00:26]} 32. Qc8 {[%emt 0:01:03]} f4 {[%emt 0:00:32]} 33. Rd7 {[%emt 0:03:19]} Qf5 {[%emt 0:00:24]} 34. Qd8 {[%emt 0:01:28]} f3 {[%emt 0:00:35]} 35. Bh4 {[%emt 0:01:56]} Qxh3 {[%emt 0:00:31]} 36. Rxg7+ {[%emt 0:00:15]} Kxg7 {[%emt 0:00:01]} 37. Qc7+ {[%emt 0:00:09]} Kh6 {[%emt 0:00:42]} 38. Qf4+ {[%emt 0:00:05]} g5 {[%emt 0:00:48]} 0-1

[Event "XI Paracin Festival 2018"]
[Site "Paracin"]
[Date "2018.07.13"]
[Round "9"]
[White "Djordjevic, Vuk"]
[Black "Sevgi, Volkan"]
[Result "1-0"]
[ECO "B26"]
[WhiteElo "2403"]
[BlackElo "2277"]
[Annotator "ChessBase"]
[PlyCount "169"]
[EventDate "2018.07.06"]
[EventType "swiss"]
[EventCountry "SRB"]
[SourceTitle "playchess.com"]
[Source "ChessBase"]
[SourceQuality "1"]
[TimeControl "5400+30"]

1. e4 {[%emt 0:00:00]} c5 {[%emt 0:00:35]} 2. Nc3 {[%emt 0:00:00]} Nc6 {[%emt 0:11:13]} 3. g3 {[%emt 0:00:11]} g6 {[%emt 0:00:39]} 4. Bg2 {[%emt 0:00:08]} Bg7 {[%emt 0:00:02]} 5. d3 {[%emt 0:00:30]} d6 {[%emt 0:00:49]} 6. Nge2 {[%emt 0:01:22]} e5 {[%emt 0:01:20]} 7. O-O {[%emt 0:01:32]} Nge7 {[%emt 0:00:34]} 8. Bg5 {[%emt 0:00:08]} f6 {[%emt 0:04:29]} 9. Be3 {[%emt 0:00:12]} O-O {[%emt 0:00:02]} 10. Qd2 {[%emt 0:01:51]} Nd4 {[%emt 0:00:09]} 11. f4 {[%emt 0:00:18]} f5 {[%emt 0:01:52]} 12. Rab1 {[%emt 0:06:24]} a5 {[%emt 0:05:55]} 13. a4 {[%emt 0:06:23]} Rb8 {[%emt 0:00:05]} 14. Nd5 {[%emt 0:09:55]} Nxe2+ {[%emt 0:08:52]} 15. Qxe2 {[%emt 0:00:03]} Nxd5 {[%emt 0:00:01]} 16. exd5 {[%emt 0:00:09]} Re8 {[%emt 0:00:01]} 17. Qd2 {[%emt 0:01:18]} e4 {[%emt 0:06:19]} 18. dxe4 {[%emt 0:11:48]} fxe4 {[%emt 0:00:07]} 19. c4 {[%emt 0:18:41]} Bf5 {[%emt 0:03:19]} 20. h3 {[%emt 0:01:05]} h5 {[%emt 0:00:11]} 21. Kh2 {[%emt 0:01:23]} b6 {[%emt 0:07:06]} 22. Rbe1 {[%emt 0:07:19]} Rb7 {[%emt 0:01:18]} 23. Qc2 {[%emt 0:05:29]} Rbe7 {[%emt 0:12:14]} 24. Qb3 {[%emt 0:03:43]} Bf6 {[%emt 0:01:32]} 25. Re2 {[%emt 0:03:13]} Rg7 {[%emt 0:03:23]} 26. Rfe1 {[%emt 0:03:19]} Rge7 {[%emt 0:07:33]} 27. Qc2 {[%emt 0:07:09]} Qd7 {[%emt 0:00:15]} 28. Bc1 {[%emt 0:02:02]} Kg7 {[%emt 0:03:46]} 29. Qb3 {[%emt 0:03:32]} Qd8 {[%emt 0:00:13]} 30. Bd2 {[%emt 0:00:41]} Kg8 {[%emt 0:07:56]} 31. Bc3 {[%emt 0:00:22]} Rb7 {[%emt 0:00:01]} 32. Bxe4 {[%emt 0:02:14]} Bxc3 {[%emt 0:00:26]} 33. Qxc3 {[%emt 0:00:42]} Rbe7 {[%emt 0:00:04]} 34. Qf3 {[%emt 0:01:03]} Bxe4 {[%emt 0:04:18]} 35. Rxe4 {[%emt 0:00:01]} Qd7 {[%emt 0:00:32]} 36. Qd3 {[%emt 0:02:48]} Rxe4 {[%emt 0:00:10]} 37. Rxe4 {[%emt 0:00:01]} Rxe4 {[%emt 0:00:01]} 38. Qxe4 {[%emt 0:00:09]} Qg7 {[%emt 0:00:01]} 39. Qe2 {[%emt 0:01:12]} Qd4 {[%emt 0:00:29]} 40. Kg2 {[%emt 0:00:48]} Kf8 {[%emt 0:00:40]} 41. h4 {[%emt 0:00:42]} Qf6 {[%emt 0:00:01]} 42. Qc2 {[%emt 0:00:25]} Kf7 {[%emt 0:00:16]} 43. Qc3 {[%emt 0:00:34]} Qf5 {[%emt 0:00:01]} 44. Kf3 {[%emt 0:00:30]} Qb1 {[%emt 0:00:15]} 45. Ke2 {[%emt 0:00:22]} Qe4+ {[%emt 0:00:16]} 46. Kd1 {[%emt 0:00:21]} Qb1+ {[%emt 0:00:10]} 47. Kd2 {[%emt 0:00:02]} Qf1 {[%emt 0:00:31]} 48. Qd3 {[%emt 0:01:15]} Qa1 {[%emt 0:01:06]} 49. Qb3 {[%emt 0:00:32]} Qg1 {[%emt 0:00:02]} 50. Qd3 {[%emt 0:00:24]} Qa1 {[%emt 0:00:05]} 51. b3 {[%emt 0:00:37]} Qb2+ {[%emt 0:00:29]} 52. Ke1 {[%emt 0:00:12]} Qg2 {[%emt 0:00:16]} 53. Qe3 {[%emt 0:00:16]} Qc2 {[%emt 0:01:03]} 54. Kf1 {[%emt 0:00:12]} Qd1+ {[%emt 0:00:28]} 55. Kf2 {[%emt 0:01:07]} Qc2+ {[%emt 0:00:08]} 56. Qe2 {[%emt 0:00:40]} Qxb3 {[%emt 0:00:19]} 57. f5 {[%emt 0:00:15]} gxf5 {[%emt 0:03:32]} 58. Qxh5+ {[%emt 0:00:01]} Kg7 {[%emt 0:00:14]} 59. Qg5+ {[%emt 0:00:10]} Kh8 {[%emt 0:00:01]} 60. Qh6+ {[%emt 0:00:25]} Kg8 {[%emt 0:00:01]} 61. Qg6+ {[%emt 0:00:04]} Kh8 {[%emt 0:00:06]} 62. Qf6+ {[%emt 0:00:05]} Kg8 {[%emt 0:00:05]} 63. Qxf5 {[%emt 0:00:42]} Qxc4 {[%emt 0:00:01]} 64. Qe6+ {[%emt 0:02:20]} Kg7 {[%emt 0:00:09]} 65. Qe7+ {[%emt 0:00:01]} Kg8 {[%emt 0:00:02]} 66. Qxd6 {[%emt 0:00:45]} Qc2+ {[%emt 0:00:06]} 67. Kf3 {[%emt 0:00:12]} Qd3+ {[%emt 0:01:14]} 68. Kf4 {[%emt 0:00:33]} Qd4+ {[%emt 0:00:01]} 69. Kf5 {[%emt 0:00:58]} Qd3+ {[%emt 0:00:11]} 70. Kg5 {[%emt 0:00:27]} Qd2+ {[%emt 0:00:21]} 71. Kg6 {[%emt 0:00:36]} Qd3+ {[%emt 0:00:10]} 72. Kf6 {[%emt 0:00:17]} Qf3+ {[%emt 0:00:42]} 73. Qf4 {[%emt 0:00:26]} Qc3+ {[%emt 0:01:55]} 74. Ke6 {[%emt 0:00:01]} Qb3 {[%emt 0:02:30]} 75. Qg5+ {[%emt 0:01:01]} Kh7 {[%emt 0:00:00]} 76. Kf6 {[%emt 0:00:37]} Qc3+ {[%emt 0:00:22]} 77. Qe5 {[%emt 0:00:21]} Qf3+ {[%emt 0:01:29]} 78. Qf5+ {[%emt 0:00:20]} Qxf5+ {[%emt 0:00:01]} 79. Kxf5 {[%emt 0:00:05]} Kg7 {[%emt 0:00:01]} 80. Ke4 {[%emt 0:00:22]} b5 {[%emt 0:00:01]} 81. axb5 {[%emt 0:00:10]} a4 {[%emt 0:00:00]} 82. b6 {[%emt 0:00:11]} a3 {[%emt 0:00:01]} 83. b7 {[%emt 0:00:04]} a2 {[%emt 0:00:01]} 84. b8=Q {[%emt 0:00:04]} a1=Q {[%emt 0:00:03]} 85. Qe5+ {[%emt 0:00:06]} 1-0

[Event "XI Paracin Festival 2018"]
[Site "Paracin"]
[Date "2018.07.13"]
[Round "9"]
[White "Rahul Srivatshav P"]
[Black "Gomes, Mary Ann"]
[Result "0-1"]
[ECO "E43"]
[WhiteElo "2397"]
[BlackElo "2284"]
[Annotator "NA"]
[PlyCount "72"]
[EventDate "2018.07.06"]
[EventType "swiss"]
[EventCountry "SRB"]
[SourceTitle "playchess.com"]
[Source "ChessBase"]
[SourceQuality "1"]
[TimeControl "5400+30"]

1. d4 Nf6 2. c4 {[%emt 0:00:35]} e6 {[%emt 0:00:06]} 3. Nc3 {[%emt 0:00:06]} Bb4 {[%emt 0:00:06]} 4. e3 {[%emt 0:00:11]} b6 $11 {[%emt 0:00:06] LiveBook: 3744 Partien} 5. Bd2 {[%emt 0:00:08]} Bb7 {[%emt 0:00:07]} 6. Nf3 {[%emt 0:00:10]} Bxc3 {[%emt 0:00:22]} 7. Bxc3 {[%emt 0:00:51]} Ne4 {[%emt 0:00:06]} 8. Qc2 {[%emt 0:04:01]} O-O {[%emt 0:00:51]} 9. Bd3 {[%emt 0:07:47]} f5 {[%emt 0:00:13]} 10. O-O-O {[%emt 0:10:52]} Qe7 {[%emt 0:02:27]} 11. Ne1 {[%emt 0:04:43]} c5 {[%emt 0:04:33]} 12. dxc5 {[%emt 0:04:47]} Nxc3 {[%emt 0:02:00]} 13. Qxc3 {[%emt 0:00:26]} Na6 {[%emt 0:07:06]} 14. cxb6 {[%emt 0:14:09]} axb6 {[%emt 0:00:05]} 15. Kb1 {[%emt 0:03:29]} Nb4 {[%emt 0:10:40]} 16. a3 {[%emt 0:00:09]} Nxd3 {[%emt 0:00:07]} 17. Nxd3 {[%emt 0:00:04]} Bxg2 {[%emt 0:00:42]} 18. Rhg1 {[%emt 0:00:08]} Be4 {[%emt 0:10:17]} 19. Ka2 {[%emt 0:03:22]} Rfc8 {[%emt 0:06:04]} 20. Nf4 {[%emt 0:02:10]} Bf3 {[%emt 0:14:28]} 21. Rd2 {[%emt 0:02:17]} b5 {[%emt 0:03:48]} 22. c5 {[%emt 0:12:10]} e5 {[%emt 0:03:07]} 23. Nd3 {[%emt 0:03:31]} d6 {[%emt 0:02:04]} 24. Qb3+ {[%emt 0:02:15]} Kh8 {[%emt 0:04:56]} 25. Ne1 {[%emt 0:00:43]} Bh5 {[%emt 0:01:42]} 26. cxd6 {[%emt 0:01:23]} Qd7 {[%emt 0:00:28]} 27. Kb1 {[%emt 0:05:52]} Bf7 {[%emt 0:01:22]} 28. Qd3 {[%emt 0:02:59]} b4 {[%emt 0:06:37]} 29. Rc2 {[%emt 0:05:20]} Qe6 {[%emt 0:08:26]} 30. Kc1 {[%emt 0:04:25]} Rd8 {[%emt 0:07:04]} 31. Qb5 {[%emt 0:02:17]} bxa3 {[%emt 0:00:30]} 32. bxa3 {[%emt 0:00:08]} Rxa3 {[%emt 0:00:30]} 33. Nf3 {[%emt 0:00:24]} Ra1+ {[%emt 0:00:57]} 34. Kd2 {[%emt 0:00:06]} Rxg1 {[%emt 0:01:03]} 35. Qxe5 {[%emt 0:00:47]} Rxd6+ {[%emt 0:00:31]} 36. Ke2 {[%emt 0:00:07]} Qc4+ {[%emt 0:00:29]} 0-1

[Event "XI Paracin Festival 2018"]
[Site "Paracin"]
[Date "2018.07.13"]
[Round "9"]
[White "Peng, Shunkai"]
[Black "Colovic, Dusan"]
[Result "1-0"]
[ECO "C65"]
[WhiteElo "2390"]
[BlackElo "2279"]
[Annotator "NA"]
[PlyCount "125"]
[EventDate "2018.07.06"]
[EventType "swiss"]
[EventCountry "SRB"]
[SourceTitle "playchess.com"]
[Source "ChessBase"]
[SourceQuality "1"]
[TimeControl "5400+30"]

1. e4 {[%emt 0:00:00]} e5 {[%emt 0:00:00]} 2. Nf3 {[%emt 0:00:00]} Nc6 {[%emt 0:00:00]} 3. Bb5 {[%emt 0:00:11]} Nf6 {[%emt 0:00:00]} 4. d3 {[%emt 0:00:13]} Bc5 $14 {[%emt 0:00:14] LiveBook: 2804 Games} 5. Bxc6 {[%emt 0:00:36]} dxc6 {[%emt 0:00:18]} 6. Qe2 {[%emt 0:00:51]} Qe7 {[%emt 0:00:41]} 7. Nbd2 {[%emt 0:03:17]} Rg8 {[%emt 0:03:18]} 8. c3 {[%emt 0:06:09]} g5 {[%emt 0:08:23]} 9. Nc4 {[%emt 0:03:25]} Nd7 {[%emt 0:01:17]} 10. h3 {[%emt 0:05:28]} f6 {[%emt 0:05:07]} 11. Be3 {[%emt 0:02:36]} Bd6 {[%emt 0:02:09]} 12. O-O-O {[%emt 0:01:31]} Nf8 {[%emt 0:07:37]} 13. g4 {[%emt 0:21:13]} Be6 {[%emt 0:05:48]} 14. d4 {[%emt 0:04:17]} Ng6 {[%emt 0:01:54]} 15. Kb1 {[%emt 0:10:47]} Qf7 {[%emt 0:12:35]} 16. Nxd6+ {[%emt 0:03:21]} cxd6 {[%emt 0:01:37]} 17. b3 {[%emt 0:00:27]} O-O-O {[%emt 0:03:26]} 18. dxe5 {[%emt 0:04:43]} dxe5 {[%emt 0:00:56]} 19. Kb2 {[%emt 0:04:21]} b6 {[%emt 0:06:40]} 20. Rhe1 {[%emt 0:07:48]} Kb7 {[%emt 0:04:28]} 21. Nh2 {[%emt 0:02:03]} a5 {[%emt 0:02:56]} 22. Nf1 {[%emt 0:02:42]} Nf4 {[%emt 0:06:32]} 23. Bxf4 {[%emt 0:02:37]} gxf4 {[%emt 0:00:06]} 24. Rd3 {[%emt 0:01:55]} Rxd3 {[%emt 0:01:52]} 25. Qxd3 {[%emt 0:00:02]} Qd7 {[%emt 0:00:22]} 26. Qxd7+ {[%emt 0:02:47]} Bxd7 {[%emt 0:00:05]} 27. Kc2 {[%emt 0:02:59]} h5 {[%emt 0:01:05]} 28. f3 {[%emt 0:00:07]} hxg4 {[%emt 0:00:34]} 29. hxg4 {[%emt 0:00:06]} Rh8 {[%emt 0:00:11]} 30. Kd2 {[%emt 0:00:15]} a4 {[%emt 0:02:27]} 31. Ke2 {[%emt 0:02:11]} axb3 {[%emt 0:00:35]} 32. axb3 {[%emt 0:00:01]} Be6 {[%emt 0:00:09]} 33. Rb1 {[%emt 0:01:07]} b5 {[%emt 0:01:06]} 34. Rb2 {[%emt 0:00:36]} c5 {[%emt 0:01:08]} 35. Rb1 {[%emt 0:00:16]} c4 {[%emt 0:01:04]} 36. b4 {[%emt 0:00:46]} Ra8 {[%emt 0:03:17]} 37. Rb2 {[%emt 0:00:23]} Ra1 {[%emt 0:01:40]} 38. Rc2 {[%emt 0:00:21]} Kc7 {[%emt 0:00:31]} 39. Kf2 {[%emt 0:00:22]} Kd6 {[%emt 0:00:19]} 40. Kg2 {[%emt 0:02:21]} Ke7 {[%emt 0:00:10]} 41. Nh2 {[%emt 0:00:32]} Kf7 {[%emt 0:00:10]} 42. Nf1 {[%emt 0:01:24]} Kg6 {[%emt 0:00:10]} 43. Nh2 {[%emt 0:00:35]} Kg5 {[%emt 0:00:58]} 44. Nf1 {[%emt 0:00:07]} Rd1 {[%emt 0:01:29]} 45. Kf2 {[%emt 0:00:25]} Rd3 {[%emt 0:03:29]} 46. Rc1 {[%emt 0:01:04]} Bc8 {[%emt 0:00:36]} 47. Kg2 {[%emt 0:00:24]} Kh4 {[%emt 0:01:07]} 48. Rc2 {[%emt 0:00:17]} Bxg4 {[%emt 0:02:14]} 49. fxg4 {[%emt 0:00:13]} f3+ {[%emt 0:00:06]} 50. Kf2 {[%emt 0:01:28]} Kxg4 {[%emt 0:00:06]} 51. Rd2 {[%emt 0:01:06]} Kf4 {[%emt 0:02:24]} 52. Rxd3 {[%emt 0:01:45]} cxd3 {[%emt 0:00:06]} 53. Nd2 {[%emt 0:00:13]} f5 {[%emt 0:00:06]} 54. exf5 {[%emt 0:00:20]} e4 {[%emt 0:00:06]} 55. Nf1 {[%emt 0:00:46]} d2 {[%emt 0:00:20]} 56. Ne3 {[%emt 0:00:09]} Kg5 {[%emt 0:01:42]} 57. Nd1 {[%emt 0:01:33]} Kxf5 {[%emt 0:01:17]} 58. Ke3 {[%emt 0:00:04]} Ke5 {[%emt 0:00:46]} 59. Kxd2 {[%emt 0:00:37]} Kf4 {[%emt 0:02:13]} 60. Ne3 {[%emt 0:00:19]} Kg3 {[%emt 0:01:50]} 61. Ke1 {[%emt 0:00:13]} Kh3 {[%emt 0:02:48]} 62. Kf2 {[%emt 0:00:07]} Kh4 {[%emt 0:00:14]} 63. c4 {[%emt 0:00:11]} 1-0